bitfinex-derivatives/quotes_BTCF0:USTF0_20250318
["timestamp","ask_amount","ask_price","bid_price","bid_amount"]
[1742265724459,0.1199309,83388.0,83387.0,0.00012013]
[1742265724858,0.2341309,83388.0,83387.0,0.00012013]
[1742265725754,0.2341309,83388.0,83387.0,0.00212013]
[1742265728667,0.2361309,83388.0,83387.0,0.00112013]
[1742265728873,0.2381309,83388.0,83387.0,0.00012013]
[1742265733073,0.2381309,83388.0,83380.0,0.0352]
[1742265733074,0.1199409,83381.0,83380.0,0.0352]
[1742265733263,0.5995009,83381.0,83380.0,0.0352]
[1742265733463,0.6730009,83381.0,83380.0,0.0352]
[1742265734778,0.6730009,83381.0,83380.0,0.0707]
[1742265737380,0.6350009,83381.0,83380.0,0.0707]
[1742265737973,0.5995009,83381.0,83380.0,0.0707]
[1742265739481,0.6358009,83381.0,83380.0,0.0707]
[1742265739677,0.6724009,83381.0,83380.0,0.0707]
[1742265741378,0.6358009,83381.0,83380.0,0.0707]
[1742265741584,0.5995009,83381.0,83380.0,0.0707]
[1742265741887,0.4807409,83381.0,83380.0,0.1906424]
[1742265743380,0.4807409,83381.0,83380.0,0.0707]
[1742265743783,0.5191409,83381.0,83380.0,0.0707]
[1742265744680,0.5572409,83381.0,83380.0,0.0707]
[1742265747585,0.55715039,83381.0,83380.0,0.0707]
[1742265755390,0.48065039,83381.0,83380.0,0.0707]
[1742265756381,0.48065039,83381.0,83380.0,0.1906424]
[1742265757779,0.48065039,83381.0,83380.0,0.0707]
[1742265758179,0.51625039,83381.0,83380.0,0.0707]
[1742265758387,0.55215039,83381.0,83380.0,0.0707]
[1742265759184,0.51625039,83381.0,83380.0,0.0707]
[1742265760492,0.51625039,83381.0,83380.0,0.1906424]
[1742265764281,0.55325039,83381.0,83380.0,0.1906424]
[1742265774907,0.51625039,83381.0,83380.0,0.1906424]
[1742265775694,0.55395039,83381.0,83380.0,0.1906424]
[1742265779904,0.55395039,83381.0,83380.0,0.0707]
[1742265781314,0.55395039,83381.0,83380.0,0.1906424]
[1742265783706,0.00017981,83389.0,83388.0,0.1199309]
[1742265783912,0.2398504,83395.0,83394.0,0.1798754]
[1742265786008,0.119923,83395.0,83394.0,0.1798754]
[1742265787716,0.122923,83395.0,83394.0,0.1798754]
[1742265792515,0.003,83395.0,83394.0,0.1798754]
[1742265793024,0.003,83395.0,83394.0,0.4198754]
[1742265793211,0.12009081,83403.0,83402.0,0.1199107]
[1742265793416,0.12008911,83403.0,83402.0,0.1199107]
[1742265793721,0.1198906,83417.0,83411.0,0.0599488]
[1742265794023,0.0599468,83414.0,83412.0,0.037]
[1742265794208,0.0599458,83416.0,83402.0,0.04871823]
[1742265794209,0.1199093,83403.0,83402.0,0.01371823]
[1742265794414,0.1199136,83400.0,83399.0,0.2385539]
[1742265794611,0.1199194,83396.0,83395.0,0.0969597]
[1742265794818,0.1199194,83396.0,83395.0,0.0699597]
[1742265795124,0.1199194,83396.0,83395.0,0.01]
[1742265795513,0.1199237,83393.0,83392.0,0.0709]
[1742265796015,0.1561237,83393.0,83392.0,0.08467382]
[1742265796316,0.1561237,83393.0,83392.0,0.0709]
[1742265797519,0.1561237,83393.0,83392.0,0.08425675]
[1742265797828,0.1571237,83393.0,83392.0,0.20418185]
[1742265798222,0.1581237,83393.0,83392.0,0.20418185]
[1742265798721,0.1571237,83393.0,83392.0,0.20418185]
[1742265798917,0.1591237,83393.0,83392.0,0.20418185]
[1742265800419,0.1571237,83393.0,83392.0,0.20418185]
[1742265800626,0.1581237,83393.0,83392.0,0.20418185]
[1742265800828,0.1219237,83393.0,83392.0,0.20418185]
[1742265801118,0.1591237,83393.0,83392.0,0.20418185]
[1742265802028,0.1591237,83393.0,83392.0,0.08425675]
[1742265802629,0.1591237,83393.0,83392.0,0.20418185]
[1742265802835,0.1591237,83393.0,83392.0,0.08425675]
[1742265803927,0.1581237,83393.0,83392.0,0.08425675]
[1742265804120,0.1591237,83393.0,83392.0,0.08425675]
[1742265804428,0.1581237,83393.0,83392.0,0.04925675]
[1742265804931,0.1591237,83393.0,83392.0,0.04925675]
[1742265805318,0.1611237,83393.0,83392.0,0.04925675]
[1742265805719,0.1611237,83393.0,83392.0,0.08465675]
[1742265806823,0.1239237,83393.0,83392.0,0.20458185]
[1742265807131,0.1249237,83393.0,83392.0,0.20458185]
[1742265807333,0.1588237,83393.0,83392.0,0.20458185]
[1742265807526,0.1558237,83393.0,83392.0,0.20458185]
[1742265807727,0.1578237,83393.0,83392.0,0.20458185]
[1742265807927,0.1578237,83393.0,83392.0,0.08465675]
[1742265808933,0.1578237,83393.0,83392.0,0.04925675]
[1742265810424,0.1578237,83393.0,83392.0,0.08275675]
[1742265811728,0.1578237,83393.0,83392.0,0.04925675]
[1742265811927,0.004,83393.0,83392.0,0.04925675]
[1742265812128,0.00084,83413.0,83392.0,0.04925675]
[1742265812129,0.3608,83410.0,83392.0,0.63110933]
[1742265812327,0.3608,83410.0,83407.0,0.1199036]
[1742265812635,0.12008191,83408.0,83407.0,0.1199036]
[1742265812820,0.12008191,83408.0,83407.0,0.1916036]
[1742265813025,0.15508191,83408.0,83407.0,0.1916036]
[1742265813221,0.03517981,83408.0,83407.0,0.1916036]
[1742265813423,0.3608,83420.0,83407.0,0.5917]
[1742265813637,0.3608,83420.0,83419.0,0.1198863]
[1742265814026,0.3608,83420.0,83419.0,0.2265863]
[1742265814333,0.3608,83420.0,83419.0,0.23993842]
[1742265814528,0.5743348,83431.0,83428.0,0.0599361]
[1742265814529,0.03584,83431.0,83428.0,0.0599361]
[1742265814726,0.1198691,83431.0,83430.0,0.1198705]
[1742265814934,0.1198691,83431.0,83430.0,0.12901724]
[1742265815137,0.1198663,83433.0,83432.0,0.1198648]
[1742265815632,0.35677157,83436.0,83435.0,0.1198633]
[1742265816338,0.00017981,83438.0,83437.0,0.1198604]
[1742265818923,0.00217981,83438.0,83437.0,0.1198604]
[1742265819532,0.00217981,83438.0,83437.0,0.3598604]
[1742265819830,0.00217981,83438.0,83437.0,0.1198604]
[1742265820337,0.1186,83451.0,83448.0,0.1797634]
[1742265820535,0.2144615,83452.0,83451.0,0.1198403]
[1742265820842,0.1198418,83450.0,83449.0,0.0733]
[1742265821327,0.1198475,83446.0,83445.0,0.3608]
[1742265822042,0.1198475,83446.0,83445.0,0.3947]
[1742265822443,0.4806475,83446.0,83445.0,0.0339]
[1742265822642,0.4806475,83446.0,83430.0,0.00914674]
[1742265822643,0.1198619,83436.0,83435.0,0.0369]
[1742265822946,0.1198619,83436.0,83435.0,0.1906633]
[1742265823141,0.0599295,83438.0,83437.0,0.1198604]
[1742265824448,0.11856,83439.0,83438.0,0.119859]
[1742265824746,0.2384176,83439.0,83438.0,0.190359]
[1742265825130,0.2384176,83439.0,83438.0,0.0349]
[1742265825335,0.2384176,83439.0,83438.0,0.154759]
[1742265825839,0.2384176,83439.0,83438.0,0.0349]
[1742265826750,0.2394176,83439.0,83438.0,0.0349]
[1742265827739,0.2760176,83439.0,83438.0,0.0349]
[1742265832750,0.1198619,83436.0,83435.0,0.01333089]
[1742265833050,0.1198676,83432.0,83431.0,0.0713]
[1742265833435,0.1559676,83432.0,83431.0,0.0713]
[1742265834548,0.1559676,83432.0,83431.0,0.08452417]
[1742265835146,0.1569676,83432.0,83431.0,0.08452417]
[1742265836451,0.1579676,83432.0,83431.0,0.08452417]
[1742265837351,0.1579676,83432.0,83431.0,0.20439327]
[1742265837854,0.002,83432.0,83431.0,0.20439327]
[1742265838038,0.002,83432.0,83431.0,0.24089327]
[1742265841557,0.1218676,83432.0,83431.0,0.24089327]
[1742265843561,0.1218676,83432.0,83431.0,0.60169327]
[1742265844153,0.002,83432.0,83431.0,0.60169327]
[1742265844763,0.1218676,83432.0,83431.0,0.60169327]
[1742265845264,0.002,83432.0,83431.0,0.60169327]
[1742265845455,0.1218676,83432.0,83431.0,0.60169327]
[1742265849854,0.002,83432.0,83431.0,0.85169327]
[1742265850055,0.0599198,83452.0,83439.0,0.1198576]
[1742265850280,0.0341,83453.0,83452.0,0.1198389]
[1742265850462,0.0599134,83461.0,83460.0,0.1198245]
[1742265850662,0.0599134,83461.0,83460.0,0.1548245]
[1742265851057,0.0599134,83461.0,83460.0,0.1898245]
[1742265851965,0.0931134,83461.0,83460.0,0.1898245]
[1742265852272,0.0609134,83461.0,83460.0,0.20297213]
[1742265852662,0.0609134,83461.0,83460.0,0.32145213]
[1742265852862,0.001,83461.0,83460.0,0.32145213]
[1742265853170,0.06008731,83469.0,83465.0,0.1198202]
[1742265853171,0.1797311,83466.0,83465.0,0.1198202]
[1742265853673,0.1797311,83466.0,83465.0,0.1550202]
[1742265857069,0.1797311,83466.0,83465.0,0.0352]
[1742265857276,0.1797311,83466.0,83465.0,0.1550202]
[1742265866871,0.2153311,83466.0,83465.0,0.1550202]
[1742265869573,0.2517311,83466.0,83465.0,0.1890202]
[1742265875580,0.0963094,83466.0,83465.0,0.1890202]
[1742265876680,0.0599094,83466.0,83465.0,0.1890202]
[1742265877186,0.0954094,83466.0,83465.0,0.1890202]
[1742265879398,0.0355,83466.0,83465.0,0.1890202]
[1742265880287,0.1553188,83466.0,83465.0,0.1890202]
[1742265881187,0.00017981,83469.0,83468.0,0.1198159]
[1742265881382,0.1198068,83477.0,83476.0,0.1197995]
[1742265881582,0.1198068,83477.0,83476.0,0.1887995]
[1742265882085,0.17971,83477.0,83476.0,0.1887995]
[1742265882283,0.1198015,83479.0,83478.0,0.1797008]
[1742265882486,0.1911015,83479.0,83478.0,0.1797008]
[1742265884389,0.0713,83479.0,83478.0,0.4197008]
[1742265884582,0.1911001,83479.0,83478.0,0.1797008]
[1742265884982,0.0359,83479.0,83478.0,0.5405008]
[1742265886592,0.0359,83479.0,83478.0,0.7805008]
[1742265886781,0.1197963,83482.0,83481.0,0.1197973]
[1742265886982,0.1534963,83482.0,83481.0,0.1197973]
[1742265887184,0.06001587,83485.0,83484.0,0.119793]
[1742265887185,0.17980867,83485.0,83484.0,0.119793]
[1742265887382,0.17980867,83485.0,83484.0,0.238153]
[1742265888490,0.17980867,83485.0,83484.0,0.25087035]
[1742265890092,0.17980867,83485.0,83478.0,0.2381581]
[1742265890093,0.1198001,83479.0,83478.0,0.2381581]
[1742265890595,0.1915001,83479.0,83478.0,0.2381581]
[1742265891294,0.0354,83479.0,83478.0,0.50106739]
[1742265891502,0.1552001,83479.0,83478.0,1.16186739]
[1742265891792,0.1552001,83479.0,83478.0,0.87186739]
[1742265892792,0.06001527,83485.0,83484.0,0.119793]
[1742265894400,0.00084,83510.0,83484.0,0.5452]
[1742265894589,0.0334,83497.0,83496.0,0.1197738]
[1742265895494,0.213063,83497.0,83496.0,0.1197738]
[1742265896200,0.249163,83497.0,83496.0,0.1197738]
[1742265896790,0.284163,83497.0,83496.0,0.1197738]
[1742265897297,0.28427336,83497.0,83496.0,0.1197738]
[1742265900996,0.25087336,83497.0,83496.0,0.1197738]
[1742265901494,0.13109906,83497.0,83496.0,0.1197738]
[1742265903089,0.1598854,83500.0,83496.0,0.1197738]
[1742265903090,0.1,83500.0,83498.0,0.1796578]
[1742265903291,0.1,83500.0,83499.0,0.5501714]
[1742265904390,0.21977,83500.0,83499.0,0.5501714]
[1742265904809,0.28827,83500.0,83499.0,0.5501714]
[1742265908805,0.28827,83500.0,83499.0,0.5511714]
[1742265909506,0.28827,83500.0,83499.0,0.5521714]
[1742265910207,0.28827,83500.0,83499.0,0.8221714]
[1742265910398,0.25297,83500.0,83499.0,0.5521714]
[1742265910804,0.25297,83500.0,83499.0,0.8221714]
[1742265910994,0.25297,83500.0,83499.0,0.5521714]
[1742265911402,0.32077,83500.0,83499.0,0.6704514]
[1742265911605,0.32077,83500.0,83499.0,0.6694514]
[1742265911798,0.28657,83500.0,83499.0,0.6704514]
[1742265912202,0.28657,83500.0,83499.0,0.6694514]
[1742265912397,0.28657,83500.0,83499.0,0.6684514]
[1742265912591,0.28657,83500.0,83499.0,0.9484514]
[1742265914013,0.28657,83500.0,83499.0,1.1984514]
[1742265914311,0.0598795,83511.0,83510.0,0.0598777]
[1742265914704,0.1310795,83511.0,83510.0,0.0598777]
[1742265915107,0.1310795,83511.0,83510.0,0.07281859]
[1742265915400,0.3107227,83511.0,83510.0,0.26227429]
[1742265918501,0.0712,83511.0,83510.0,0.26227429]
[1742265918818,0.1796076,83525.0,83524.0,0.1197342]
[1742265919005,0.1796076,83525.0,83524.0,0.1548342]
[1742265919211,0.2505076,83525.0,83524.0,0.1548342]
[1742265920213,0.2856076,83525.0,83524.0,0.1548342]
[1742265920416,0.2856076,83525.0,83524.0,0.1894342]
[1742265922117,0.2856076,83525.0,83524.0,0.19849375]
[1742265923418,0.2856076,83525.0,83524.0,0.04415955]
[1742265923713,0.1197542,83511.0,83510.0,0.01290763]
[1742265923921,0.1197542,83511.0,83510.0,0.1197557]
[1742265924215,0.2206542,83511.0,83510.0,0.1197557]
[1742265924622,0.2206542,83511.0,83510.0,0.16801283]
[1742265925012,0.2206542,83511.0,83510.0,0.04825713]
[1742265925822,0.2206542,83511.0,83510.0,0.16801283]
[1742265926016,0.2206542,83511.0,83510.0,0.20231283]
[1742265926611,0.2206542,83511.0,83510.0,0.21115137]
[1742265928021,0.2206542,83511.0,83510.0,0.05709567]
[1742265931720,0.2206542,83511.0,83510.0,0.17685137]
[1742265933909,0.2206542,83511.0,83510.0,0.05709567]
[1742265934722,0.2206542,83511.0,83510.0,0.09119567]
[1742265935423,0.2206542,83511.0,83510.0,0.21095137]
[1742265935721,0.2206542,83511.0,83510.0,0.24485137]
[1742265938019,0.2206542,83511.0,83510.0,0.12509567]
[1742265938623,0.2206542,83511.0,83510.0,0.09119567]
[1742265939010,0.2206542,83511.0,83510.0,0.21095137]
[1742265939916,0.1867542,83511.0,83510.0,0.21095137]
[1742265941531,0.1197542,83511.0,83510.0,0.21095137]
[1742265941915,0.1542542,83511.0,83510.0,0.21095137]
[1742265942627,0.1542542,83511.0,83510.0,0.09119567]
[1742265942830,0.2193542,83511.0,83510.0,0.09119567]
[1742265943932,0.2193542,83511.0,83510.0,0.21095137]
[1742265944234,0.1869542,83511.0,83510.0,0.21095137]
[1742265945927,0.1869542,83511.0,83510.0,0.09119567]
[1742265947839,0.1869542,83511.0,83510.0,0.04825713]
[1742265948534,0.1869542,83511.0,83510.0,0.04863713]
[1742265949336,0.1869542,83511.0,83510.0,0.08413713]
[1742265949930,0.1869542,83511.0,83510.0,0.04863713]
[1742265950134,0.1197657,83503.0,83502.0,0.00017969]
[1742265950327,0.5987657,83503.0,83502.0,0.00017969]
[1742265950531,0.61168167,83503.0,83502.0,0.00017969]
[1742265950730,0.67968167,83503.0,83502.0,0.00017969]
[1742265950930,0.67968167,83503.0,83502.0,9e-08]
[1742265951130,0.67968167,83503.0,83475.0,0.5389025]
[1742265951131,0.1197729,83498.0,83496.0,0.16846092]
[1742265951332,0.1542743,83497.0,83496.0,0.16846092]
[1742265951530,0.1877743,83497.0,83496.0,0.16846092]
[1742265952736,0.1877743,83497.0,83496.0,0.17046092]
[1742265953237,0.1877743,83497.0,83496.0,0.17246092]
[1742265954037,0.1877743,83497.0,83496.0,0.12758612]
[1742265954223,0.1877743,83497.0,83496.0,0.05721212]
[1742265954423,0.19686107,83497.0,83496.0,2e-08]
[1742265954830,0.20686107,83497.0,83496.0,2e-08]
[1742265955631,0.1197858,83489.0,83488.0,0.00017969]
[1742265955931,0.1197987,83480.0,83479.0,0.0335]
[1742265956131,0.2379987,83480.0,83479.0,0.0335]
[1742265956633,0.3067987,83480.0,83479.0,0.0335]
[1742265957132,0.3067987,83480.0,83479.0,0.04600958]
[1742265958531,0.3087987,83480.0,83479.0,0.04600958]
[1742265958839,0.3107987,83480.0,83479.0,0.04600958]
[1742265959036,0.6715987,83480.0,83479.0,0.04600958]
[1742265960638,0.6715987,83480.0,83472.0,0.0346]
[1742265960639,0.1198088,83473.0,83472.0,0.0346]
[1742265960841,0.2380088,83473.0,83472.0,0.0346]
[1742265961032,0.2718088,83473.0,83472.0,0.0346]
[1742265962045,0.3042088,83473.0,83472.0,0.0683]
[1742265962748,0.3042088,83473.0,83472.0,0.1881102]
[1742265963137,0.3042088,83473.0,83472.0,0.08109804]
[1742265965251,0.3042088,83473.0,83472.0,0.20090824]
[1742265965450,0.3042088,83473.0,83472.0,0.08109804]
[1742265967044,0.3042088,83473.0,83472.0,0.0337]
[1742265967045,0.6650088,83473.0,83472.0,0.0337]
[1742265967244,0.0599116,83463.0,83461.0,0.0349]
[1742265967447,0.5405347,83463.0,83462.0,0.0696]
[1742265967646,0.6587347,83463.0,83462.0,0.0696]
[1742265968244,0.3608,83463.0,83462.0,0.19851894]
[1742265968446,0.0599076,83469.0,83468.0,0.1198159]
[1742265968447,0.1781076,83469.0,83468.0,0.1198159]
[1742265969057,0.1781076,83469.0,83468.0,0.2242159]
[1742265969258,0.0599076,83469.0,83468.0,0.2242159]
[1742265969648,0.0599076,83469.0,83468.0,0.1044]
[1742265970249,0.0599076,83469.0,83468.0,0.2242159]
[1742265970450,0.0599076,83469.0,83468.0,0.1044]
[1742265971161,0.0599076,83469.0,83468.0,0.1074]
[1742265972066,0.0599076,83469.0,83468.0,0.0725]
[1742265972751,0.0599076,83469.0,83468.0,0.0374]
[1742265975250,0.0599076,83469.0,83468.0,0.003]
[1742265975448,0.1198202,83465.0,83464.0,0.0345]
[1742265975659,0.2380202,83465.0,83464.0,0.0345]
[1742265976557,0.2380202,83465.0,83464.0,0.0365]
[1742265977161,0.2380202,83465.0,83464.0,0.0395]
[1742265979461,0.2716202,83465.0,83464.0,0.0395]
[1742265979763,0.3041202,83465.0,83464.0,0.0395]
[1742265983362,0.1198202,83465.0,83464.0,0.0395]
[1742265983667,0.1198202,83465.0,83464.0,0.5528217]
[1742265983972,0.11999129,83471.0,83470.0,0.1198131]
[1742265984166,0.11999129,83471.0,83470.0,0.1538131]
[1742265984374,0.11999129,83471.0,83470.0,0.1879131]
[1742265984570,0.00017969,83471.0,83470.0,0.1879131]
[1742265984759,0.1197958,83483.0,83481.0,0.0598978]
[1742265984960,0.1197958,83483.0,83470.0,0.5781]
[1742265984961,0.179693,83483.0,83482.0,0.1003]
[1742265985972,0.1796836,83487.0,83486.0,0.1197872]
[1742265986163,0.0598944,83487.0,83486.0,0.1197872]
[1742265986483,0.0598944,83487.0,83486.0,0.07890914]
[1742265986773,0.0598944,83487.0,83486.0,0.19869924]
[1742265987270,0.0598944,83487.0,83486.0,0.19969924]
[1742265987469,0.0598937,83488.0,83486.0,0.19969924]
[1742265987470,0.00017969,83491.0,83489.0,0.0598928]
[1742265987775,0.1197603,83507.0,83506.0,0.05988]
[1742265987968,0.11976,83507.0,83506.0,0.11976]
[1742265988172,0.1796291,83514.0,83513.0,0.059875]
[1742265989173,0.0598755,83514.0,83513.0,0.059875]
[1742265990472,0.0598755,83514.0,83513.0,0.093875]
[1742265990963,0.0598717,83519.0,83516.0,0.0598728]
[1742265991162,0.0598717,83519.0,83518.0,0.1197442]
[1742265991581,0.0598717,83519.0,83518.0,0.1877442]
[1742265993073,0.0618717,83519.0,83518.0,0.20025848]
[1742265995473,0.00017969,83522.0,83518.0,0.20025848]
[1742265995474,0.0598676,83527.0,83518.0,0.08051428]
[1742265995669,0.2394746,83527.0,83526.0,0.1197238]
[1742265996571,0.2394746,83527.0,83526.0,0.1838238]
[1742265996775,0.2414746,83527.0,83526.0,0.0641]
[1742265997467,0.2777746,83527.0,83526.0,0.0641]
[1742265997661,0.3115746,83527.0,83526.0,0.0641]
[1742266008071,0.3115746,83527.0,83526.0,0.032]
[1742266010684,0.2777746,83527.0,83526.0,0.032]
[1742266011670,0.2777746,83527.0,83526.0,0.0661]
[1742266012981,0.2777746,83527.0,83526.0,0.1858327]
[1742266015082,0.2777746,83527.0,83526.0,0.0661]
[1742266016185,0.2777746,83527.0,83526.0,0.1858327]
[1742266016489,0.2424746,83527.0,83526.0,0.1858327]
[1742266017693,0.3608,83537.0,83526.0,0.1858327]
[1742266017694,0.00084,83550.0,83526.0,0.87002518]
[1742266017987,0.0598354,83570.0,83541.0,0.3608]
[1742266018184,0.0696,83569.0,83560.0,0.1654971]
[1742266018381,0.1196897,83556.0,83555.0,0.11808]
[1742266018690,0.1196897,83556.0,83555.0,0.13204391]
[1742266018878,0.1863897,83556.0,83555.0,0.01396391]
[1742266019082,0.1863897,83556.0,83554.0,0.480492]
[1742266019083,0.1196912,83555.0,83554.0,0.3608]
[1742266019283,0.1528912,83555.0,83554.0,0.37357592]
[1742266019480,0.0344,83555.0,83554.0,0.49326852]
[1742266020092,0.1196871,83560.0,83559.0,0.1795242]
[1742266021496,0.1196871,83560.0,83559.0,0.0598423]
[1742266021896,0.0323,83560.0,83559.0,0.0598423]
[1742266022097,0.1196774,83565.0,83564.0,0.1196783]
[1742266022485,0.1519774,83565.0,83564.0,0.1196783]
[1742266022690,0.1196797,83563.0,83562.0,0.15468]
[1742266022898,0.1196797,83563.0,83562.0,0.18688]
[1742266023196,0.1530797,83563.0,83562.0,0.19593199]
[1742266024086,0.0334,83563.0,83562.0,0.19593199]
[1742266024692,0.0334,83563.0,83562.0,0.07625199]
[1742266024892,0.1530797,83563.0,83562.0,0.04405199]
[1742266025199,0.1196811,83562.0,83561.0,0.3608]
[1742266025387,0.1533811,83562.0,83561.0,0.3608]
[1742266025588,0.1867811,83562.0,83561.0,0.3608]
[1742266026399,0.1867811,83562.0,83561.0,0.4804826]
[1742266026899,0.1867811,83562.0,83561.0,0.3608]
[1742266027897,0.1196912,83555.0,83554.0,0.01277592]
[1742266028101,0.1196983,83550.0,83549.0,0.1196997]
[1742266028595,0.1196998,83549.0,83548.0,0.1521999]
[1742266028786,0.1891998,83549.0,83548.0,0.1521999]
[1742266029197,0.1891998,83549.0,83548.0,0.1322477]
[1742266029586,0.1891998,83549.0,83548.0,0.1660477]
[1742266030701,0.1891998,83549.0,83548.0,0.17511369]
[1742266031902,0.1891998,83549.0,83548.0,0.05541379]
[1742266032100,0.1891998,83549.0,83548.0,0.02161379]
[1742266032294,0.1197012,83548.0,83547.0,0.00017958]
[1742266032695,0.1525012,83548.0,83547.0,0.00017958]
[1742266032893,0.1197112,83541.0,83540.0,0.28505112]
[1742266033103,0.5985112,83541.0,83540.0,0.28445112]
[1742266033307,0.1197313,83527.0,83526.0,0.35510761]
[1742266033608,0.2377313,83527.0,83526.0,0.35510761]
[1742266033907,0.2705313,83527.0,83526.0,0.35510761]
[1742266034200,0.3055313,83527.0,83526.0,0.35510761]
[1742266035692,0.3065313,83527.0,83526.0,0.35510761]
[1742266035896,0.3085313,83527.0,83526.0,0.35510761]
[1742266036396,0.3433313,83527.0,83526.0,0.35510761]
[1742266037608,0.1197356,83524.0,83523.0,0.3608]
[1742266038007,0.1540356,83524.0,83523.0,0.3608]
[1742266038207,0.1866356,83524.0,83523.0,0.3608]
[1742266038997,0.1876356,83524.0,83523.0,0.3608]
[1742266039496,0.1896356,83524.0,83523.0,0.3608]
[1742266042307,0.1896356,83524.0,83518.0,0.00017958]
[1742266042308,0.1197428,83519.0,83518.0,0.00017958]
[1742266042498,0.2377828,83519.0,83518.0,0.00017958]
[1742266042806,0.3412828,83519.0,83518.0,0.00017958]
[1742266043394,0.1197657,83503.0,83493.0,0.0598894]
[1742266043606,0.11977,83500.0,83494.0,0.0346]
[1742266044006,0.18817,83500.0,83494.0,0.0346]
[1742266044712,0.1197772,83495.0,83494.0,0.0346]
[1742266045306,0.1107772,83495.0,83494.0,0.0346]
[1742266045513,0.1107772,83495.0,83494.0,0.04748835]
[1742266045813,0.1454772,83495.0,83494.0,0.04748835]
[1742266046014,0.1454772,83495.0,83494.0,0.05248835]
[1742266046511,0.1454772,83495.0,83494.0,0.16726695]
[1742266046716,0.1454772,83495.0,83494.0,0.17226695]
[1742266047009,0.1454772,83495.0,83494.0,0.20706695]
[1742266047507,0.1794772,83495.0,83494.0,0.20706695]
[1742266047706,0.1794772,83495.0,83494.0,0.08728835]
[1742266048510,0.1794772,83495.0,83494.0,0.02388835]
[1742266049201,0.1794772,83495.0,83494.0,0.011]
[1742266049402,0.1794772,83495.0,83494.0,0.01]
[1742266049599,0.18859163,83495.0,83494.0,0.01]
[1742266049804,0.1197829,83491.0,83490.0,0.3608]
[1742266050318,0.1880829,83491.0,83490.0,0.3608]
[1742266051319,0.1147872,83488.0,83487.0,0.0126018]
[1742266051517,0.119793,83484.0,83483.0,0.0336]
[1742266051717,0.115793,83484.0,83483.0,0.0666]
[1742266051918,0.184093,83484.0,83483.0,0.0666]
[1742266052909,0.185093,83484.0,83483.0,0.0666]
[1742266053121,0.187093,83484.0,83483.0,0.0666]
[1742266054324,0.187093,83484.0,83483.0,0.07935413]
[1742266057406,0.187093,83484.0,83483.0,0.04635413]
[1742266057813,0.187093,83484.0,83483.0,0.01275413]
[1742266058014,0.1197944,83483.0,83482.0,0.00017958]
[1742266058423,0.1870944,83483.0,83482.0,0.00017958]
[1742266059323,0.1900944,83483.0,83482.0,0.00017958]
[1742266064910,0.1900944,83483.0,83482.0,0.03487958]
[1742266067324,0.1198131,83470.0,83458.0,0.0006]
[1742266067517,0.2378531,83470.0,83468.0,0.0342]
[1742266067924,0.3067531,83470.0,83468.0,0.0342]
[1742266068227,0.3067531,83470.0,83469.0,0.37325052]
[1742266068618,0.3067531,83470.0,83469.0,0.40905052]
[1742266072122,0.3067531,83470.0,83469.0,0.04825052]
[1742266078329,0.1542131,83470.0,83469.0,0.04825052]
[1742266078731,0.1542131,83470.0,83469.0,0.16806502]
[1742266079733,0.1873131,83470.0,83469.0,0.16806502]
[1742266079934,0.1542131,83470.0,83469.0,0.18220534]
[1742266080526,0.1879131,83470.0,83469.0,0.1822269]
[1742266081135,0.1879131,83470.0,83469.0,0.21491804]
[1742266082828,0.1879131,83470.0,83469.0,0.21491766]
[1742266083238,0.1879131,83470.0,83469.0,0.09510316]
[1742266084029,0.1879131,83470.0,83469.0,0.21491766]
[1742266085228,0.1879131,83470.0,83469.0,0.09510316]
[1742266085425,0.1198145,83469.0,83468.0,0.2141656]
[1742266085728,0.1525145,83469.0,83468.0,0.2141656]
[1742266085937,0.2222145,83469.0,83468.0,0.2141656]
[1742266087835,0.2222145,83469.0,83464.0,0.3608]
[1742266087836,0.1198202,83465.0,83464.0,0.3608]
[1742266088231,0.1869202,83465.0,83464.0,0.3608]
[1742266088627,0.1869202,83465.0,83464.0,0.3735015]
[1742266089326,0.3049602,83465.0,83464.0,0.3735015]
[1742266096139,0.3049602,83465.0,83464.0,0.0127015]
[1742266096335,0.1198231,83463.0,83462.0,0.0344]
[1742266096838,0.1876231,83463.0,83462.0,0.0344]
[1742266098437,0.1198245,83462.0,83461.0,0.03457969]
[1742266098636,0.1198245,83462.0,83450.0,0.2141656]
[1742266098637,0.1198403,83451.0,83450.0,0.2141656]
[1742266098843,0.1198403,83451.0,83450.0,0.25691649]
[1742266099049,0.1198403,83451.0,83450.0,0.22691649]
[1742266099234,0.1895403,83451.0,83450.0,0.22691649]
[1742266099932,0.0697,83451.0,83450.0,0.34675829]
[1742266100241,0.0717,83451.0,83450.0,0.41335829]
[1742266100933,0.0737,83451.0,83450.0,0.41335829]
[1742266101333,0.1935403,83451.0,83450.0,0.41335829]
[1742266102142,0.1935403,83451.0,83450.0,0.19919269]
[1742266102443,0.1915403,83451.0,83450.0,0.19919269]
[1742266103237,0.1905403,83451.0,83450.0,0.19919269]
[1742266103635,0.1895403,83451.0,83450.0,0.19919269]
[1742266104044,0.1895403,83451.0,83450.0,0.01275089]
[1742266104234,0.1198461,83447.0,83446.0,0.3608]
[1742266104433,0.1198461,83447.0,83446.0,0.5255475]
[1742266104641,0.1531461,83447.0,83446.0,0.5255475]
[1742266104946,0.1870461,83447.0,83446.0,0.4057]
[1742266105142,0.1870461,83447.0,83446.0,0.5255475]
[1742266105441,0.1870461,83447.0,83446.0,0.56988757]
[1742266108043,0.1531461,83447.0,83446.0,0.56988757]
[1742266108543,0.1876461,83447.0,83446.0,0.56988757]
[1742266117777,0.1876461,83447.0,83446.0,0.20908757]
[1742266117977,0.1876461,83447.0,83446.0,0.56988757]
[1742266120078,0.1876461,83447.0,83446.0,0.41814007]
[1742266120379,0.2200461,83447.0,83446.0,0.41814007]
[1742266121267,0.2200461,83447.0,83446.0,0.38324007]
[1742266121474,0.2200461,83447.0,83446.0,0.37324007]
[1742266121773,0.2200461,83447.0,83446.0,0.01244007]
[1742266121971,0.2200461,83447.0,83443.0,0.1540505]
[1742266121972,0.1198504,83444.0,83443.0,0.1540505]
[1742266122177,0.1198504,83444.0,83443.0,0.0342]
[1742266122378,0.1198518,83443.0,83442.0,0.00017969]
[1742266122770,0.1869518,83443.0,83442.0,0.00017969]
[1742266123869,0.1869518,83443.0,83442.0,0.01231045]
[1742266124069,0.1869518,83443.0,83442.0,0.00017969]
[1742266125273,0.1869518,83443.0,83442.0,0.12003299]
[1742266125483,0.1869518,83443.0,83442.0,0.13219786]
[1742266125981,0.1869518,83443.0,83442.0,0.04394456]
[1742266126487,0.1869518,83443.0,83442.0,0.01234456]
[1742266129278,0.1869518,83443.0,83442.0,0.00017969]
[1742266133981,0.1198705,83430.0,83429.0,0.0338]
[1742266134174,0.1198705,83430.0,83429.0,0.09884228]
[1742266134576,0.1889705,83430.0,83429.0,0.09884228]
[1742266139982,0.1889705,83430.0,83429.0,0.21871418]